[Event "EWIRCC 2019"]
[Site "Monte-Carlo"]
[Date "2019.11.30"]
[Round "4.8"]
[White "Benmesbah, Natacha"]
[Black "Batsiashvili, Nino"]
[Result "0-1"]
[ECO "C54"]
[WhiteElo "2265"]
[BlackElo "2422"]
[Annotator "NA"]
[PlyCount "56"]
[EventDate "2019.11.28"]
[EventType "swiss"]
[EventCountry "MNC"]
[SourceTitle "playchess.com"]
[Source "ChessBase"]
[SourceQuality "1"]
[TimeControl "5400+30"]

1. e4 {[%emt 1:15:11]} e5 {[%emt 1:15:11]} 2. Nf3 {[%emt 0:00:24]} Nc6 {[%emt 0:00:21]} 3. Bc4 {[%emt 0:00:21]} Bc5 {[%emt 0:00:23]} 4. d3 {[%emt 0:00:22]} Nf6 {[%emt 0:00:23]} 5. c3 {[%emt 0:00:21]} a6 {[%emt 0:00:21]} 6. a4 {[%emt 0:00:27]} Ba7 {[%emt 0:00:26]} 7. O-O {[%emt 0:00:39]} d6 {[%emt 0:00:35]} 8. Nbd2 {[%emt 0:00:28]} O-O {[%emt 0:00:28]} 9. h3 {[%emt 0:00:58]} Be6 {[%emt 0:00:22]} 10. b4 {[%emt 0:00:46]} Qe8 {[%emt 0:01:10]} 11. Re1 {[%emt 0:00:35]} Nh5 {[%emt 0:00:55]} 12. Nxe5 {[%emt 0:01:39]} Nxe5 {[%emt 0:00:51]} 13. Qxh5 {[%emt 0:00:22]} Bxc4 {[%emt 0:00:35]} 14. dxc4 {[%emt 0:00:23]} f5 {[%emt 0:00:56]} 15. Qe2 {[%emt 0:02:11]} Qg6 {[%emt 0:00:27]} 16. exf5 {[%emt 0:06:03]} Rxf5 {[%emt 0:00:27]} 17. Ne4 {[%emt 0:00:21]} Nf3+ {[%emt 0:00:42]} 18. Kh1 {[%emt 0:00:23]} Nxe1 {[%emt 0:00:26]} 19. Qxe1 {[%emt 0:00:21]} Re8 {[%emt 0:01:09]} 20. f3 {[%emt 0:00:22]} c6 {[%emt 0:00:56]} 21. Qd1 {[%emt 0:01:09]} d5 {[%emt 0:00:24]} 22. cxd5 {[%emt 0:00:30]} cxd5 {[%emt 0:00:21]} 23. Nc5 {[%emt 0:00:28]} Qg3 {[%emt 0:01:34]} 24. Bd2 {[%emt 0:00:31]} Bxc5 {[%emt 0:00:28]} 25. bxc5 {[%emt 0:00:23]} Rfe5 {[%emt 0:00:21]} 26. Qb3 {[%emt 0:02:20]} Kh8 {[%emt 0:00:21]} 27. Rg1 {[%emt 0:00:54]} Rh5 {[%emt 0:00:26]} 28. Rd1 {[%emt 0:01:55]} Re2 {[%emt 0:00:58]} 0-1

[Event "EWIRCC 2019"]
[Site "Monte-Carlo"]
[Date "2019.11.30"]
[Round "4.9"]
[White "Kosteniuk, Alexandra"]
[Black "Bensdorp-De Labaca, Marlies"]
[Result "1-0"]
[ECO "D20"]
[WhiteElo "2483"]
[BlackElo "2228"]
[Annotator "ChessBase"]
[PlyCount "43"]
[EventDate "2019.11.28"]
[EventType "swiss"]
[EventCountry "MNC"]
[SourceTitle "playchess.com"]
[Source "ChessBase"]
[SourceQuality "1"]
[TimeControl "5400+30"]

1. e4 {[%emt 1:15:13]} e6 {[%emt 1:15:11]} 2. d4 {[%emt 0:00:21]} d5 {[%emt 0:00:21]} 3. exd5 {[%emt 0:00:21]} exd5 {[%emt 0:00:23]} 4. Nf3 {[%emt 0:00:22]} Bd6 {[%emt 0:00:30]} 5. c4 {[%emt 0:00:22]} dxc4 {[%emt 0:00:32]} 6. Bxc4 {[%emt 0:00:22]} Nf6 {[%emt 0:00:26]} 7. O-O {[%emt 0:00:31]} O-O {[%emt 0:00:24]} 8. Bg5 {[%emt 0:00:45]} c6 {[%emt 0:01:43]} 9. Ne5 {[%emt 0:00:56]} Bxe5 {[%emt 0:02:17]} 10. dxe5 {[%emt 0:00:22]} Qxd1 {[%emt 0:00:22]} 11. Rxd1 {[%emt 0:00:21]} Ne4 {[%emt 0:00:21]} 12. Be7 {[%emt 0:00:43]} Re8 {[%emt 0:00:29]} 13. f3 {[%emt 0:00:29]} Nd7 {[%emt 0:00:24]} 14. e6 {[%emt 0:01:07]} Rxe7 {[%emt 0:03:33]} 15. exd7 {[%emt 0:00:28]} Bxd7 {[%emt 0:00:27]} 16. fxe4 {[%emt 0:00:24]} Bg4 {[%emt 0:00:30]} 17. Re1 {[%emt 0:00:42]} Rd8 {[%emt 0:00:53]} 18. h3 {[%emt 0:00:24]} Bh5 {[%emt 0:00:22]} 19. Nc3 {[%emt 0:00:29]} Rd4 {[%emt 0:01:08]} 20. Bb3 {[%emt 0:00:32]} g5 {[%emt 0:00:38]} 21. g4 {[%emt 0:00:29]} Bg6 {[%emt 0:00:24]} 22. Rad1 {[%emt 0:00:22]} 1-0

[Event "EWIRCC 2019"]
[Site "Monte-Carlo"]
[Date "2019.11.30"]
[Round "4.11"]
[White "Gaprindashvili, Nona"]
[Black "Stefanova, Antoaneta"]
[Result "0-1"]
[ECO "D94"]
[WhiteElo "2275"]
[BlackElo "2481"]
[Annotator "ChessBase"]
[PlyCount "80"]
[EventDate "2019.11.28"]
[EventType "swiss"]
[EventCountry "MNC"]
[SourceTitle "playchess.com"]
[Source "ChessBase"]
[SourceQuality "1"]
[TimeControl "5400+30"]

1. d4 {[%emt 1:15:11]} d5 {[%emt 1:15:12]} 2. c4 {[%emt 0:00:21]} c6 {[%emt 0:00:21]} 3. Nf3 {[%emt 0:00:23]} Nf6 {[%emt 0:00:22]} 4. e3 {[%emt 0:00:28]} g6 {[%emt 0:00:25]} 5. Nc3 {[%emt 0:00:24]} Bg7 {[%emt 0:00:21]} 6. a3 {[%emt 0:00:52]} O-O {[%emt 0:00:50]} 7. Be2 {[%emt 0:00:23]} b6 {[%emt 0:01:34]} 8. b4 {[%emt 0:01:00]} c5 {[%emt 0:01:24]} 9. O-O {[%emt 0:02:33]} dxc4 {[%emt 0:01:02]} 10. bxc5 {[%emt 0:00:52]} bxc5 {[%emt 0:00:23]} 11. Bxc4 {[%emt 0:01:12]} cxd4 {[%emt 0:04:24]} 12. exd4 {[%emt 0:00:27]} Qc7 {[%emt 0:01:09]} 13. Qb3 {[%emt 0:03:51]} Nc6 {[%emt 0:00:53]} 14. Nb5 {[%emt 0:02:26]} Qb6 {[%emt 0:00:53]} 15. Bd2 {[%emt 0:03:58]} a6 {[%emt 0:01:19]} 16. Nc3 {[%emt 0:01:12]} Qa7 {[%emt 0:00:29]} 17. Ne2 {[%emt 0:00:38]} Bg4 {[%emt 0:01:58]} 18. Ne5 {[%emt 0:00:59]} Bxe2 {[%emt 0:02:17]} 19. Nxc6 {[%emt 0:00:33]} Bxc4 {[%emt 0:00:22]} 20. Qxc4 {[%emt 0:00:23]} Qd7 {[%emt 0:01:23]} 21. Bb4 {[%emt 0:00:29]} Rfe8 {[%emt 0:00:23]} 22. Ne5 {[%emt 0:00:35]} Qd5 {[%emt 0:00:21]} 23. Rac1 {[%emt 0:00:34]} a5 {[%emt 0:00:45]} 24. Bc5 {[%emt 0:00:33]} e6 {[%emt 0:00:31]} 25. Rb1 {[%emt 0:00:33]} Ne4 {[%emt 0:00:58]} 26. Qxd5 {[%emt 0:00:35]} exd5 {[%emt 0:00:21]} 27. Nf3 {[%emt 0:00:24]} g5 {[%emt 0:00:40]} 28. h3 {[%emt 0:00:22]} h5 {[%emt 0:00:21]} 29. g4 {[%emt 0:00:30]} hxg4 {[%emt 0:00:23]} 30. hxg4 {[%emt 0:00:21]} f5 {[%emt 0:00:22]} 31. Rb7 {[%emt 0:00:48]} fxg4 {[%emt 0:00:31]} 32. Ne5 {[%emt 0:00:24]} Nxc5 {[%emt 0:01:01]} 33. dxc5 {[%emt 0:00:25]} Bxe5 {[%emt 0:00:23]} 34. Kg2 {[%emt 0:00:34]} Rac8 {[%emt 0:00:35]} 35. Rb5 {[%emt 0:00:24]} d4 {[%emt 0:00:36]} 36. Rxa5 {[%emt 0:00:23]} d3 {[%emt 0:00:23]} 37. Rd1 {[%emt 0:00:21]} Red8 {[%emt 0:00:21]} 38. c6 {[%emt 0:00:25]} Bf4 {[%emt 0:00:21]} 39. Ra6 {[%emt 0:00:26]} d2 {[%emt 0:00:24]} 40. Kf1 {[%emt 0:00:24]} Rd6 {[%emt 0:00:23]} 0-1

[Event "EWIRCC 2019"]
[Site "Monte-Carlo"]
[Date "2019.11.30"]
[Round "4.12"]
[White "Sebag, Marie"]
[Black "Zakurdjaeva, Irina"]
[Result "1-0"]
[ECO "B52"]
[WhiteElo "2443"]
[BlackElo "2235"]
[Annotator "NA"]
[PlyCount "121"]
[EventDate "2019.11.28"]
[EventType "swiss"]
[EventCountry "MNC"]
[SourceTitle "playchess.com"]
[Source "ChessBase"]
[SourceQuality "1"]
[TimeControl "5400+30"]

1. e4 {[%emt 1:15:13]} c5 {[%emt 1:15:18]} 2. Nf3 {[%emt 0:00:22]} d6 {[%emt 0:00:26]} 3. Bb5+ {[%emt 0:00:22]} Bd7 {[%emt 0:00:23]} 4. Bxd7+ {[%emt 0:00:25]} Qxd7 {[%emt 0:00:22]} 5. c4 {[%emt 0:00:24]} Nc6 {[%emt 0:00:25]} 6. Nc3 {[%emt 0:00:30]} g6 {[%emt 0:00:32]} 7. d4 {[%emt 0:00:26]} cxd4 {[%emt 0:00:25]} 8. Nxd4 {[%emt 0:00:22]} Bg7 {[%emt 0:00:23]} 9. Be3 {[%emt 0:00:38]} Rc8 {[%emt 0:00:47]} 10. b3 {[%emt 0:01:31]} Nf6 {[%emt 0:01:03]} 11. f3 {[%emt 0:00:32]} O-O {[%emt 0:00:40]} 12. O-O {[%emt 0:00:22]} a6 {[%emt 0:00:29]} 13. Qd3 {[%emt 0:01:31]} Ne5 {[%emt 0:02:27]} 14. Qe2 {[%emt 0:01:42]} b5 {[%emt 0:00:35]} 15. Nd5 {[%emt 0:00:28]} Nxd5 {[%emt 0:03:27]} 16. cxd5 {[%emt 0:00:24]} Rc3 {[%emt 0:00:40]} 17. Rad1 {[%emt 0:02:12]} Rfc8 {[%emt 0:00:52]} 18. h3 {[%emt 0:00:36]} Qb7 {[%emt 0:01:54]} 19. f4 {[%emt 0:01:29]} Nd7 {[%emt 0:00:22]} 20. Nc6 {[%emt 0:01:44]} Nb8 {[%emt 0:01:22]} 21. Nd4 {[%emt 0:01:38]} b4 {[%emt 0:00:56]} 22. Kh1 {[%emt 0:00:54]} Nd7 {[%emt 0:01:19]} 23. Bg1 {[%emt 0:01:28]} a5 {[%emt 0:01:51]} 24. Nc6 {[%emt 0:00:35]} R8xc6 {[%emt 0:00:51]} 25. dxc6 {[%emt 0:00:30]} Qxc6 {[%emt 0:00:22]} 26. Bd4 {[%emt 0:01:09]} Rc2 {[%emt 0:00:25]} 27. Rd2 {[%emt 0:00:57]} Rxd2 {[%emt 0:00:31]} 28. Qxd2 {[%emt 0:00:21]} Nf6 {[%emt 0:02:13]} 29. Bxf6 {[%emt 0:00:37]} Bxf6 {[%emt 0:00:24]} 30. Qd3 {[%emt 0:00:30]} Kg7 {[%emt 0:01:08]} 31. Rd1 {[%emt 0:01:32]} a4 {[%emt 0:00:55]} 32. bxa4 {[%emt 0:00:53]} Qxa4 {[%emt 0:00:23]} 33. Qb3 {[%emt 0:00:24]} Qxb3 {[%emt 0:01:20]} 34. axb3 {[%emt 0:00:22]} Bc3 {[%emt 0:00:30]} 35. g3 {[%emt 0:00:25]} Kf6 {[%emt 0:00:45]} 36. Kg2 {[%emt 0:00:21]} Ke6 {[%emt 0:00:28]} 37. Kf3 {[%emt 0:00:22]} h5 {[%emt 0:00:47]} 38. Rd5 {[%emt 0:00:44]} Kd7 {[%emt 0:00:39]} 39. Ra5 {[%emt 0:00:56]} Ke6 {[%emt 0:00:34]} 40. Ra7 {[%emt 0:00:32]} Be1 {[%emt 0:00:25]} 41. g4 {[%emt 0:00:31]} hxg4+ {[%emt 0:00:25]} 42. hxg4 {[%emt 0:00:21]} Bd2 {[%emt 0:00:23]} 43. g5 {[%emt 0:01:12]} Bc1 {[%emt 0:00:38]} 44. Rb7 {[%emt 0:00:32]} Bd2 {[%emt 0:00:23]} 45. Kg4 {[%emt 0:00:23]} f5+ {[%emt 0:00:49]} 46. exf5+ {[%emt 0:01:09]} gxf5+ {[%emt 0:00:22]} 47. Kh5 {[%emt 0:00:21]} Bxf4 {[%emt 0:00:36]} 48. Rxb4 {[%emt 0:00:21]} Be5 {[%emt 0:00:22]} 49. g6 {[%emt 0:00:39]} f4 {[%emt 0:00:28]} 50. Re4 {[%emt 0:00:34]} f3 {[%emt 0:00:35]} 51. Re3 {[%emt 0:00:35]} f2 {[%emt 0:00:26]} 52. Rf3 {[%emt 0:00:21]} Bd4 {[%emt 0:00:32]} 53. Kh6 {[%emt 0:00:29]} Kd5 {[%emt 0:00:33]} 54. g7 {[%emt 0:00:26]} Bxg7+ {[%emt 0:00:26]} 55. Kxg7 {[%emt 0:00:21]} e5 {[%emt 0:00:25]} 56. Rxf2 {[%emt 0:00:29]} e4 {[%emt 0:00:24]} 57. Kf6 {[%emt 0:00:27]} e3 {[%emt 0:00:23]} 58. Re2 {[%emt 0:00:50]} Kd4 {[%emt 0:00:27]} 59. Ke6 {[%emt 0:00:33]} Kd3 {[%emt 0:00:40]} 60. Re1 {[%emt 0:00:38]} Kd2 {[%emt 0:00:26]} 61. Rh1 {[%emt 0:00:23]} 1-0

[Event "EWIRCC 2019"]
[Site "Monte-Carlo"]
[Date "2019.11.30"]
[Round "4.13"]
[White "Cramling, Pia"]
[Black "Paasikangas-Tella, Johanna"]
[Result "1-0"]
[ECO "E90"]
[WhiteElo "2443"]
[BlackElo "2177"]
[Annotator "NA"]
[PlyCount "65"]
[EventDate "2019.11.28"]
[EventType "swiss"]
[EventCountry "MNC"]
[SourceTitle "playchess.com"]
[Source "ChessBase"]
[SourceQuality "1"]
[TimeControl "5400+30"]

1. Nf3 {[%emt 1:15:12]} g6 {[%emt 1:15:17]} 2. c4 {[%emt 0:00:29]} Bg7 {[%emt 0:00:24]} 3. d4 {[%emt 0:00:22]} Nf6 {[%emt 0:00:30]} 4. Nc3 {[%emt 0:00:20]} O-O {[%emt 0:00:28]} 5. e4 {[%emt 0:00:22]} d6 {[%emt 0:00:22]} 6. h3 {[%emt 0:00:22]} c6 {[%emt 0:01:12]} 7. Be3 {[%emt 0:00:32]} Qc7 {[%emt 0:00:32]} 8. Be2 {[%emt 0:00:35]} e5 {[%emt 0:00:31]} 9. d5 {[%emt 0:00:23]} Nbd7 {[%emt 0:00:28]} 10. Nd2 {[%emt 0:00:36]} Ne8 {[%emt 0:00:55]} 11. g4 {[%emt 0:00:26]} a5 {[%emt 0:00:44]} 12. h4 {[%emt 0:00:44]} Nc5 {[%emt 0:00:59]} 13. h5 {[%emt 0:00:27]} Qe7 {[%emt 0:01:40]} 14. Nf1 {[%emt 0:00:44]} Bd7 {[%emt 0:02:07]} 15. Ng3 {[%emt 0:00:28]} Rb8 {[%emt 0:00:27]} 16. Qd2 {[%emt 0:01:27]} f6 {[%emt 0:02:01]} 17. hxg6 {[%emt 0:00:43]} hxg6 {[%emt 0:00:23]} 18. O-O-O {[%emt 0:00:38]} a4 {[%emt 0:01:55]} 19. Rh2 {[%emt 0:01:06]} Kf7 {[%emt 0:00:34]} 20. Rdh1 {[%emt 0:01:09]} Rg8 {[%emt 0:00:26]} 21. Rh7 {[%emt 0:00:38]} a3 {[%emt 0:01:09]} 22. b3 {[%emt 0:00:53]} Na6 {[%emt 0:00:42]} 23. R1h6 {[%emt 0:04:42]} Nac7 {[%emt 0:00:43]} 24. g5 {[%emt 0:02:04]} f5 {[%emt 0:04:26]} 25. exf5 {[%emt 0:00:53]} gxf5 {[%emt 0:00:30]} 26. g6+ {[%emt 0:01:55]} Kf8 {[%emt 0:00:22]} 27. Bg5 {[%emt 0:00:22]} Nf6 {[%emt 0:00:44]} 28. Nh5 {[%emt 0:00:27]} Nce8 {[%emt 0:00:27]} 29. Rxg7 {[%emt 0:01:19]} Rxg7 {[%emt 0:01:44]} 30. Rh8+ {[%emt 0:00:23]} Rg8 {[%emt 0:00:57]} 31. Bxf6 {[%emt 0:00:40]} Nxf6 {[%emt 0:00:31]} 32. Qh6+ {[%emt 0:00:23]} Ke8 {[%emt 0:00:35]} 33. Nxf6+ {[%emt 0:04:46] Ra8} 1-0

[Event "EWIRCC 2019"]
[Site "Monte-Carlo"]
[Date "2019.11.30"]
[Round "4.14"]
[White "Zaksaite, Salomeja"]
[Black "Bodnaruk, Anastasia"]
[Result "0-1"]
[ECO "B86"]
[WhiteElo "2202"]
[BlackElo "2412"]
[Annotator "NA"]
[PlyCount "90"]
[EventDate "2019.11.28"]
[EventType "swiss"]
[EventCountry "MNC"]
[SourceTitle "playchess.com"]
[Source "ChessBase"]
[SourceQuality "1"]
[TimeControl "5400+30"]

1. e4 {[%emt 1:15:11]} c5 {[%emt 1:15:12]} 2. Nf3 {[%emt 0:00:23]} d6 {[%emt 0:00:22]} 3. d4 {[%emt 0:00:24]} cxd4 {[%emt 0:00:21]} 4. Nxd4 {[%emt 0:16:02]} Nf6 5. Nc3 {[%emt 0:00:00]} a6 {[%emt 0:00:52]} 6. Bc4 {[%emt 0:00:00]} e6 {[%emt 0:00:31]} 7. Bb3 {[%emt 0:00:00]} Be7 {[%emt 0:00:34]} 8. g4 {[%emt 0:00:00]} h6 {[%emt 0:01:53]} 9. Be3 {[%emt 0:00:00]} Nc6 {[%emt 0:01:00]} 10. Rg1 {[%emt 0:00:00]} g5 {[%emt 0:01:45]} 11. Qe2 {[%emt 0:00:00]} Bd7 {[%emt 0:01:57]} 12. Nxc6 {[%emt 0:00:00]} Bxc6 {[%emt 0:01:32]} 13. O-O-O {[%emt 0:00:00]} Nd7 {[%emt 0:02:30]} 14. Bd4 {[%emt 0:00:00]} Rg8 {[%emt 0:01:43]} 15. Kb1 {[%emt 0:05:30]} Qa5 {[%emt 0:03:14]} 16. Nd5 {[%emt 0:00:00]} Bxd5 {[%emt 0:01:06]} 17. exd5 {[%emt 0:01:00]} e5 18. Bc3 {[%emt 0:00:00]} Qc7 {[%emt 0:02:00]} 19. Qd2 {[%emt 0:00:00]} O-O-O {[%emt 0:01:53]} 20. Rge1 {[%emt 0:00:00]} Nc5 {[%emt 0:00:39]} 21. Ba5 {[%emt 0:00:00]} b6 {[%emt 0:00:22]} 22. Bb4 {[%emt 0:00:00]} Kb7 {[%emt 0:00:45]} 23. Re3 {[%emt 0:00:00]} Bf6 {[%emt 0:00:51]} 24. Rf3 {[%emt 0:00:00]} Rg6 {[%emt 0:00:34]} 25. Bxc5 {[%emt 0:00:15]} Qxc5 {[%emt 0:00:21]} 26. Rc3 {[%emt 0:00:49]} Qa5 {[%emt 0:00:28]} 27. Qe2 {[%emt 0:00:48]} e4 {[%emt 0:00:33]} 28. Rc6 {[%emt 0:01:00]} Be5 {[%emt 0:00:21]} 29. Qc4 {[%emt 0:02:03]} Qb5 {[%emt 0:00:28]} 30. Qxe4 {[%emt 0:00:32]} Rf6 {[%emt 0:00:34]} 31. a4 {[%emt 0:00:40]} Qa5 {[%emt 0:00:25]} 32. f3 {[%emt 0:01:01]} Rf4 {[%emt 0:00:30]} 33. Qe2 {[%emt 0:00:35]} b5 {[%emt 0:00:46]} 34. Qe1 {[%emt 0:00:34]} Qxe1 35. Rxe1 {[%emt 0:00:21]} Rxf3 {[%emt 0:01:04]} 36. axb5 axb5 {[%emt 0:00:20]} 37. c3 {[%emt 0:01:09]} f5 {[%emt 0:00:41]} 38. gxf5 {[%emt 0:00:21]} Rxf5 {[%emt 0:00:21]} 39. Bc2 {[%emt 0:00:22]} Rf2 {[%emt 0:00:24]} 40. h3 {[%emt 0:00:24]} Rdf8 {[%emt 0:00:30]} 41. Bd3 {[%emt 0:00:40]} Rd2 {[%emt 0:00:31]} 42. Bxb5 {[%emt 0:00:41]} Rff2 {[%emt 0:00:22]} 43. Rxe5 {[%emt 0:00:26]} dxe5 {[%emt 0:00:40]} 44. Ba6+ {[%emt 0:00:36]} Ka7 {[%emt 0:00:24]} 45. b4 {[%emt 0:00:27]} Rd1# {[%emt 0:00:23]} 0-1

[Event "EWIRCC 2019"]
[Site "Monte-Carlo"]
[Date "2019.11.30"]
[Round "4.15"]
[White "Paehtz, Elisabeth"]
[Black "Berzina, Ilze"]
[Result "1-0"]
[ECO "D00"]
[WhiteElo "2484"]
[BlackElo "2211"]
[Annotator "ChessBase"]
[PlyCount "101"]
[EventDate "2019.11.28"]
[EventType "swiss"]
[EventCountry "MNC"]
[SourceTitle "playchess.com"]
[Source "ChessBase"]
[SourceQuality "1"]
[TimeControl "5400+30"]

1. d4 {[%emt 1:15:12]} d5 {[%emt 1:15:13]} 2. Bf4 {[%emt 0:00:22]} c5 {[%emt 0:00:30]} 3. e3 {[%emt 0:00:22]} Nc6 {[%emt 0:00:26]} 4. c3 {[%emt 0:00:34]} Nf6 {[%emt 0:00:28]} 5. Nd2 {[%emt 0:00:22]} Bf5 {[%emt 0:00:49]} 6. Qb3 {[%emt 0:00:46]} Qb6 {[%emt 0:01:02]} 7. dxc5 {[%emt 0:00:27]} Qxb3 {[%emt 0:00:37]} 8. axb3 {[%emt 0:00:24]} e5 {[%emt 0:00:29]} 9. Bg3 {[%emt 0:00:22]} Bxc5 {[%emt 0:00:28]} 10. Ngf3 {[%emt 0:00:40]} Nd7 {[%emt 0:00:58]} 11. Bb5 {[%emt 0:01:34]} f6 {[%emt 0:00:34]} 12. b4 {[%emt 0:01:02]} Bb6 {[%emt 0:01:05]} 13. Ba4 {[%emt 0:00:21]} O-O-O {[%emt 0:01:20]} 14. Bb3 {[%emt 0:00:37]} d4 {[%emt 0:04:37]} 15. Nc4 {[%emt 0:00:22]} Bd3 {[%emt 0:04:03]} 16. Nd6+ {[%emt 0:00:35]} Kb8 {[%emt 0:00:38]} 17. exd4 {[%emt 0:01:49]} Rhf8 {[%emt 0:01:02]} 18. Rd1 {[%emt 0:01:22]} Bg6 {[%emt 0:00:54]} 19. O-O {[%emt 0:01:02]} Bh5 {[%emt 0:00:42]} 20. Rde1 {[%emt 0:00:41]} Bxf3 {[%emt 0:01:01]} 21. gxf3 {[%emt 0:00:21]} a6 {[%emt 0:00:31]} 22. Nc4 {[%emt 0:00:34]} Bc7 {[%emt 0:00:32]} 23. d5 {[%emt 0:00:30]} Na7 {[%emt 0:00:43]} 24. d6 {[%emt 0:01:07]} Bb6 {[%emt 0:00:21]} 25. f4 {[%emt 0:00:25]} Nc6 {[%emt 0:01:03]} 26. Ba4 {[%emt 0:01:21]} exf4 {[%emt 0:01:47]} 27. Bxf4 {[%emt 0:00:32]} Ba7 {[%emt 0:01:37]} 28. Bxc6 {[%emt 0:00:30]} bxc6 {[%emt 0:00:00]} 29. Re7 {[%emt 0:00:22]} g5 {[%emt 0:00:00]} 30. Bg3 {[%emt 0:01:04]} f5 {[%emt 0:00:07]} 31. Ne5 {[%emt 0:01:00]} Nxe5 {[%emt 0:01:00]} 32. Bxe5 {[%emt 0:00:22]} Ka8 {[%emt 0:00:25]} 33. Ra1 {[%emt 0:01:02]} Rfe8 {[%emt 0:00:58]} 34. Rxa6 {[%emt 0:00:22]} Rxe7 {[%emt 0:00:25]} 35. dxe7 {[%emt 0:00:22]} Re8 {[%emt 0:00:21]} 36. Bf6 {[%emt 0:00:35]} Kb7 {[%emt 0:00:27]} 37. Ra5 {[%emt 0:00:22]} Bb8 {[%emt 0:00:50]} 38. Rxf5 {[%emt 0:00:26]} h6 {[%emt 0:00:22]} 39. h4 {[%emt 0:00:35]} Bd6 {[%emt 0:00:32]} 40. hxg5 {[%emt 0:00:25]} hxg5 {[%emt 0:00:22]} 41. Bxg5 {[%emt 0:00:24]} Kc7 {[%emt 0:00:45]} 42. Kf1 {[%emt 0:00:36]} Kd7 {[%emt 0:00:24]} 43. Rf8 {[%emt 0:00:47]} Rxf8 {[%emt 0:00:23]} 44. exf8=Q {[%emt 0:00:24]} Bxf8 {[%emt 0:00:22]} 45. Ke2 {[%emt 0:00:29]} Ke6 {[%emt 0:00:24]} 46. Kd3 {[%emt 0:00:23]} Kf5 {[%emt 0:00:30]} 47. Be3 {[%emt 0:00:22]} Bd6 {[%emt 0:00:31]} 48. Kc4 {[%emt 0:00:22]} Ke4 {[%emt 0:00:24]} 49. b5 {[%emt 0:00:30]} cxb5+ {[%emt 0:00:30]} 50. Kxb5 {[%emt 0:00:22]} Kd3 {[%emt 0:00:25]} 51. c4 {[%emt 0:00:22]} 1-0

[Event "EWIRCC 2019"]
[Site "Monte-Carlo"]
[Date "2019.11.30"]
[Round "4.16"]
[White "Muetsch, Annmarie"]
[Black "Socko, Monika"]
[Result "0-1"]
[ECO "B11"]
[WhiteElo "2240"]
[BlackElo "2417"]
[Annotator "NA"]
[PlyCount "98"]
[EventDate "2019.11.28"]
[EventType "swiss"]
[EventCountry "MNC"]
[SourceTitle "playchess.com"]
[Source "ChessBase"]
[SourceQuality "1"]
[TimeControl "5400+30"]

1. e4 {[%emt 1:15:13]} c6 {[%emt 1:15:11]} 2. Nc3 {[%emt 0:00:23]} d5 {[%emt 0:00:22]} 3. Nf3 {[%emt 0:00:23]} Bg4 {[%emt 0:00:22]} 4. h3 {[%emt 0:00:22]} Bxf3 {[%emt 0:00:22]} 5. Qxf3 {[%emt 0:00:22]} e6 {[%emt 0:00:21]} 6. d3 {[%emt 0:00:22]} Nf6 {[%emt 0:00:37]} 7. Bd2 {[%emt 0:00:30]} g6 {[%emt 0:01:01]} 8. Be2 {[%emt 0:01:36]} Bg7 {[%emt 0:00:24]} 9. Qg3 {[%emt 0:01:01]} d4 {[%emt 0:01:32]} 10. Nd1 {[%emt 0:01:54]} c5 {[%emt 0:00:26]} 11. h4 {[%emt 0:00:54]} h5 {[%emt 0:00:42]} 12. f4 {[%emt 0:01:33]} Qc7 {[%emt 0:01:30]} 13. Nf2 {[%emt 0:01:09]} Nc6 {[%emt 0:00:23]} 14. a3 {[%emt 0:00:45]} Bh6 {[%emt 0:02:24]} 15. Qf3 {[%emt 0:00:56]} e5 {[%emt 0:01:46]} 16. f5 {[%emt 0:01:16]} Bxd2+ {[%emt 0:00:25]} 17. Kxd2 {[%emt 0:00:21]} Qd6 {[%emt 0:00:30]} 18. g4 {[%emt 0:01:08]} O-O-O {[%emt 0:01:36]} 19. g5 {[%emt 0:00:53]} Nd7 {[%emt 0:00:50]} 20. b3 {[%emt 0:01:08]} Kb8 {[%emt 0:00:34]} 21. Nd1 {[%emt 0:00:57]} Rdf8 {[%emt 0:00:46]} 22. f6 {[%emt 0:00:49]} Re8 {[%emt 0:01:09]} 23. Nb2 {[%emt 0:00:27]} Qc7 {[%emt 0:00:21]} 24. Rhb1 {[%emt 0:01:42]} Nb6 {[%emt 0:00:48]} 25. Ke1 {[%emt 0:00:52]} Nd8 {[%emt 0:00:28]} 26. Nc4 {[%emt 0:01:52]} Nxc4 {[%emt 0:00:26]} 27. dxc4 {[%emt 0:00:23]} Ne6 {[%emt 0:00:30]} 28. Bd3 {[%emt 0:00:41]} Nf4 {[%emt 0:00:25]} 29. b4 {[%emt 0:01:10]} Re6 {[%emt 0:00:22]} 30. bxc5 {[%emt 0:01:21]} Rc6 {[%emt 0:00:46]} 31. Rb5 {[%emt 0:01:07]} Rxc5 {[%emt 0:00:52]} 32. Rab1 {[%emt 0:00:23]} Rxb5 {[%emt 0:00:40]} 33. Rxb5 {[%emt 0:00:22]} a6 {[%emt 0:00:20]} 34. Rb3 {[%emt 0:00:32]} Ka7 {[%emt 0:00:32]} 35. Kf2 {[%emt 0:01:15]} Rc8 {[%emt 0:00:40]} 36. Qd1 {[%emt 0:00:30]} Qd7 {[%emt 0:00:46]} 37. Qf3 {[%emt 0:00:55]} Rc5 {[%emt 0:00:31]} 38. Rb4 {[%emt 0:00:49]} Ra5 {[%emt 0:00:37]} 39. Rb3 {[%emt 0:00:24]} Qd6 {[%emt 0:00:32]} 40. Qd1 {[%emt 0:00:46]} Rxa3 {[%emt 0:00:52]} 41. Qb1 {[%emt 0:00:26]} Rxb3 {[%emt 0:00:21]} 42. Qxb3 {[%emt 0:00:22]} Ne6 {[%emt 0:01:17]} 43. Qa4 {[%emt 0:00:37]} Qc6 {[%emt 0:00:23]} 44. Qb4 {[%emt 0:00:26]} Nc5 {[%emt 0:00:33]} 45. Kf3 {[%emt 0:00:22]} Qb6 {[%emt 0:00:32]} 46. Qa3 {[%emt 0:00:30]} a5 {[%emt 0:00:21]} 47. Bf1 {[%emt 0:01:00]} Qb4 {[%emt 0:00:25]} 48. Qxb4 {[%emt 0:00:26]} axb4 {[%emt 0:00:21]} 49. Bg2 {[%emt 0:00:42]} d3 {[%emt 0:00:32]} 0-1